Cogmind - Beta 17 @@@ ROGUE MODE // 2026.06.22 @ 23:44:53 Player: WetterLettuce Result: Destroyed by S-10 Pest with Light Assault Rifle Performance ------------- Evolutions (0) 0 Regions Visited (3) 600 Robots Destroyed (19) 95 Value Destroyed (577) 577 Prototype IDs (2) 40 Alien Tech Used (0) 0 Bonus (5240) 5240 TOTAL SCORE: 6552 Bonus ------- Prayed to X0-1V1 5000 Major X0-1V1 Interference 250 Friendly Fire -10 Cogmind --------- Core Integrity 0/320 Matter 285/300 Energy 1470/1500 System Corruption 2% Temperature Cool (0) Movement Rolling (90) Location -9/Recycling Parts ------- > --- POWER (1) -------- (None) > --- PROPULSION (2) --- Armored Wheel > --- UTILITY (2) ------ Scrap Engine > --- WEAPON (2) ------- (None) > --- INVENTORY (5) ---- Medium Armor Plating Peak State ------------ > --- POWER ------------ Improved Ion Engine > --- PROPULSION ------- Compact Wheel Compact Wheel > --- UTILITY ---------- Small Storage Unit X0-1V1's Piety Tracker > --- WEAPON ----------- Greatsword > --- INVENTORY -------- Armored Wheel Scrap Engine Medium Armor Plating [Rating: 28] Favorites ----------- Power Ion Engine Engine Ion Engine Propulsion Light Treads Treads Light Treads Wheel Compact Wheel Utility Heat Sink Device Heat Sink Storage Large Storage Unit Weapon Assault Rifle Energy Gun Medium Laser Ballistic Gun Assault Rifle Launcher Grenade Launcher Special Weapon Mining Laser Impact Weapon Maul Slashing Weapon Greatsword Build | -11 -10 -10 -9 ------- Run | Yrd Mat Sub Rec Slots Evolved . | . . . . Power . | . . . . Propulsion . | . . . . Utility . | . . . . Weapon . | . . . . Parts Attached 27 | 6 2 9 10 Power 2 | 1 . . 1 Engine 2 | 1 . . 1 Core . | . . . . Reactor . | . . . . Propulsion 8 | 2 . 2 4 Treads 3 | 2 . . 1 Leg . | . . . . Wheel 5 | . . 2 3 Hover . | . . . . Flight . | . . . . Utility 6 | 1 2 2 1 Device 4 | . 1 2 1 Storage 2 | 1 1 . . Processor . | . . . . Hackware . | . . . . Protection . | . . . . Artifact . | . . . . Weapon 11 | 2 . 5 4 Energy Gun 1 | 1 . . . Energy Cannon . | . . . . Ballistic Gun 5 | 1 . 2 2 Ballistic Cannon . | . . . . Launcher 2 | . . 2 . Special Weapon 1 | . . 1 . Impact Weapon 1 | . . . 1 Slashing Weapon 1 | . . . 1 Piercing Weapon . | . . . . Special Melee Weapon . | . . . . Unidentified Prototypes 2 | . . 1 1 Parts Lost 15 | . . 8 7 Power 2 | . . 1 1 Propulsion 6 | . . 2 4 Utility 2 | . . 1 1 Weapon 5 | . . 4 1 Highest Loss Streak 3 | . . 3 3 To Critical Strikes 2 | . . 2 . Average Backups 4 | . 3 4 6 Power . | . . . . Propulsion . | . . . . Utility 1 | . . 1 2 Weapon 2 | . 2 2 3 Tool/Special . | . . . . Unused Backups 9 | . . 1 8 Power . | . . . . Propulsion . | . . . . Utility 4 | . . . 4 Weapon 4 | . . 1 3 Tool/Special 1 | . . . 1 Average Slot Usage (%) 79 | . 91 76 75 Engine 8 | . 14 9 2 Treads 10 | . 28 4 6 Wheel 8 | . . 7 14 Device 14 | . 6 18 16 Storage 10 | . 14 8 11 Energy Gun 4 | . 14 2 . Ballistic Gun 15 | . 14 20 10 Launcher 1 | . . 3 . Special Weapon 1 | . . 1 . Impact Weapon 1 | . . . 5 Slashing Weapon 1 | . . . 5 Peak Build Rating 28 | 6 8 21 28 Average Rating 13 | 4 6 12 22 On Entrance 8 | . 6 8 20 Avg Prop Armor Cover (%) 5 | . . . 5 Naked Turns . | . . . . Heaviest Build 30 | 14 30 30 18 Greatest Support 40 | 40 40 40 32 Greatest Overweight (x) 9 | 1 . 9 . Average Overweight (x) . | . . 1 . Largest Inventory Capacity 15 | 8 15 15 8 Average Capacity 10 | 6 12 11 7 Most Carried 8 | . 5 6 8 Average Carried 4 | . 3 4 6 Final Capacity 15 | 8 15 5 5 Final Carried 5 | . 5 2 1 Class Distribution -------------------- 100% | Mutant Dominant Class ---------------- Mutant | -10/Materials Mutant | -10/Subcaves Mutant | -9/Recycling Resources | -11 -10 -10 -9 ----------- Run | Yrd Mat Sub Rec Matter Collected 880 | 123 167 222 368 Remotely . | . . . . Salvage Created 754 | . 89 199 466 Parts 31 | . 5 10 16 Haulers Intercepted . | . . . . Recyclers Shooed 1 | . . . 1 Parts Field Recycled . | . . . . Retrieved Matter . | . . . . Parts Self-Destructed 17 | . . 17 . Prevented . | . . . . Parts Restored . | . . . . Kills | -11 -10 -10 -9 ------- Run | Yrd Mat Sub Rec Combat Hostiles Destroyed 14 | . 2 8 4 Melee 2 | . . . 2 Guns 8 | . 2 5 1 AOE 3 | . . 3 . Classes Destroyed 7 | . 1 3 3 Recycler 3 | . . . 3 Turret 2 | . . 2 . Swarmer 3 | . . 3 . Grunt 2 | . 2 . . Sentry 2 | . . . 2 Subdweller 5 | . . 5 . Scrapper 2 | . . . 2 Best Kill Streak 2 | . 2 2 2 Combat Bots Only 2 | . 2 2 2 Max Kills in Single Turn 2 | . 1 2 1 Gunslinging . | . . . . Exploded 2 | . . 2 . Melee 1 | . . . 1 Uniques/NPCs Destroyed . | . . . . Combat | -11 -10 -10 -9 -------- Run | Yrd Mat Sub Rec Hostile Shots Fired 188 | . 10 113 65 Missed 54 | . 3 44 7 Hits 134 | . 7 69 58 Projectile 134 | . 7 69 58 Critical Strikes 4 | . . 2 2 Damage Taken 1822 | . 121 932 769 Core 508 | . 16 225 267 Absorbed by Shields . | . . . . Core Remaining (%) 100 | 100 . . . Volleys Fired 58 | . 6 42 10 Largest 2 | . 2 2 2 Hottest 100 | . 70 100 48 Shots Fired 109 | . 12 77 20 Gun 94 | . 12 62 20 Cannon . | . . . . Launcher 10 | . . 10 . Special 5 | . . 5 . Kinetic 75 | . 6 49 20 Thermal 26 | . 6 20 . Explosive 8 | . . 8 . Electromagnetic . | . . . . Robot Hit Streak 30 | . 3 18 30 Robot Miss Streak 4 | . 3 4 . Penetration Max . | . . . . Secondary Targets . | . . . . Shots Hit Robots 94 | . 6 58 30 Core Hits 32 | . 4 21 7 Critical Kills . | . . . . Critical Parts Destroyed 1 | . . . 1 Critical Strikes 2 | . . 1 1 Burn 1 | . . 1 . Smash 1 | . . . 1 Melee Attacks 12 | . . . 12 Impact 5 | . . . 5 Slashing 7 | . . . 7 Piercing . | . . . . Sneak Attacks 5 | . . . 5 Combat Hostiles . | . . . . Follow-up Attacks . | . . . . Damage Inflicted 2082 | . 76 1051 955 Guns 907 | . 76 533 298 Cannons 67 | . . 67 . Explosions 451 | . . 451 . Melee 657 | . . . 657 Ramming . | . . . . Kinetic 1014 | . 39 677 298 Thermal 198 | . 37 161 . Explosive 213 | . . 213 . Electromagnetic . | . . . . Impact 210 | . . . 210 Slashing 447 | . . . 447 Piercing . | . . . . Highest Corruption 2 | . . 2 2 Average Corruption 2 | . . 2 2 Corruption Purged . | . . . . Corruption Blocked . | . . . . Effects 15 | . . 6 9 Message Errors 7 | . . 3 4 Matter Fused 3 | . . 1 2 Heat Flow Errors 2 | . . . 2 Energy Discharges 1 | . . . 1 Data Loss (minor) 1 | . . 1 . Weapon Failures 1 | . . 1 . Overload Shots . | . . . . Overflow Damage 163 | . . . 163 Projectiles . | . . . . Explosions . | . . . . Melee 163 | . . . 163 Knockbacks 1 | . . . 1 Impact 1 | . . . 1 Kinetic . | . . . . Secondary . | . . . . Self-Inflicted Damage . | . . . . Shots . | . . . . Rammed . | . . . . Targets Rammed . | . . . . Kicked . | . . . . Crushed . | . . . . Highest Temperature 183 | . 58 183 182 Average Temperature 48 | . 28 57 78 Received Heat Transfer 594 | . 60 282 252 Siege Activations . | . . . . Martial Activations . | . . . . Shielding Activations . | . . . . Robots Disrupted . | . . . . Combat Hostiles . | . . . . Robots Corrupted 2 | . . . 2 Combat Hostiles 1 | . . . 1 Parts Fried 1 | . . . 1 Impact Corruptions 2 | . . . 2 Robots Melted . | . . . . Combat Hostiles . | . . . . Parts Melted 3 | . 1 2 . Heat Transferred 666 | . 111 555 . Parts Sabotaged . | . . . . Parts Stolen . | . . . . Parts Stripped . | . . . . Power Chain Reactions . | . . . . Alert | -11 -10 -10 -9 ------- Run | Yrd Mat Sub Rec Maximum Alert Level . | . . . . Low Security (%) 100 | 100 100 . 100 Level 1 . | . . . . Level 2 . | . . . . Level 3 . | . . . . Level 4 . | . . . . Level 5 . | . . . . High Security . | . . . . Max Security . | . . . . Peak Influence 50 | . 50 . 29 Initial . | . . . . Average 3 | . 6 . 2 Influence Increases 339 | . 79 190 70 Destroy 0b10 Robot/C 180 | . 40 100 40 Destroy 0b10 Robot/NC 15 | . . . 15 Destroy Leader 10 | . 10 . . Successful Hack 44 | . 29 . 15 Lose Combat Pursuer 90 | . . 90 . Influence Decreases 339 | . 79 190 70 Time Decay 280 | . 79 140 61 Lost Part 59 | . . 50 9 Squads Dispatched . | . . . . Investigation . | . . . . Extermination . | . . . . Reinforcement . | . . . . Assault . | . . . . Garrison . | . . . . Intercept . | . . . . Searches Triggered . | . . . . Construction Impeded . | . . . . Haulers Reinforced . | . . . . Active Scanning Responses . | . . . . Cargo Convoy Interrupts . | . . . . Stealth | -11 -10 -10 -9 --------- Run | Yrd Mat Sub Rec Distress Signals . | . . . . Communications Jammed . | . . . . Distress Signals . | . . . . Times Spotted 25 | . 4 12 9 Peak Tracking Total 4 | . 2 2 4 Tactical Retreats 3 | . . 2 1 Traps | -11 -10 -10 -9 ------- Run | Yrd Mat Sub Rec Traps Triggered 1 | . 1 . . Indirectly . | . . . . Trap Hack Attempts . | . . . . Triggered . | . . . . Disarmed . | . . . . Reprogrammed . | . . . . Reused . | . . . . Traps Extracted . | . . . . Installed . | . . . . Triggered . | . . . . Machines | -11 -10 -10 -9 ---------- Run | Yrd Mat Sub Rec Machines Disabled 4 | . . 4 . Max in Single Turn 2 | . . 2 . Machines Repaired . | . . . . Machines Dismantled . | . . . . Machines Sabotaged . | . . . . Overloaded Fab Kills . | . . . . Hacking | -11 -10 -10 -9 --------- Run | Yrd Mat Sub Rec Machines Accessed 17 | . 4 1 12 Terminals 8 | . 4 . 4 Fabricators . | . . . . Repair Stations . | . . . . Recycling Units 6 | . . . 6 Scanalyzers . | . . . . Garrison Access . | . . . . Total Hacks 50 | . 8 4 38 Successful 26 | . 5 4 17 Failed 24 | . 3 . 21 Catastrophic 4 | . . . 4 Database Lockouts . | . . . . Manual 18 | . 8 . 10 Terminals 19 | . 8 . 11 Fabricators . | . . . . Repair Stations . | . . . . Recycling Units 17 | . . . 17 Scanalyzers . | . . . . Garrison Access . | . . . . Terminal Hacks 16 | . 1 4 11 Record 12 | . . 4 8 Robot Analysis 1 | . . . 1 Locate Traps 1 | . 1 . . Release Object 2 | . . . 2 Fabricator Hacks . | . . . . Repair Station Hacks . | . . . . Recycling Unit Hacks 4 | . . . 4 Retrieve Matter 1 | . . . 1 Retrieve Components 3 | . . . 3 Scanalyzer . | . . . . Garrison Access Hacks . | . . . . Unauthorized Hacks 6 | . 4 . 2 Terminals 4 | . 4 . . Botnet 4 | . 4 . . Fabricators . | . . . . Repair Stations . | . . . . Recycling Units 2 | . . . 2 Recyclers 1 | . . . 1 Mask 1 | . . . 1 Scanalyzers . | . . . . Garrison Access . | . . . . Data Cores Recovered . | . . . . Used . | . . . . Hacking Detections 12 | . 4 . 8 Full Trace Events 1 | . . . 1 Feedback Events . | . . . . Feedback Blocked . | . . . . Robot Schematics Acquired . | . . . . Robots Built . | . . . . Authchips . | . . . . Time . | . . . . Total Robot Build Rating . | . . . . Part Schematics Acquired . | . . . . Parts Built . | . . . . Authchips . | . . . . Time . | . . . . Total Part Build Rating . | . . . . Part Studies Acquired . | . . . . Parts Repaired . | . . . . Time . | . . . . Parts Recycled . | . . . . Recycled Matter . | . . . . Retrieved Matter . | . . . . Retrieved Components 10 | . . . 10 Parts Scanalyzed . | . . . . Part Schematics Acquired . | . . . . Parts Damaged . | . . . . Bothacking | -11 -10 -10 -9 ------------ Run | Yrd Mat Sub Rec Used RIF Installer . | . . . . Robots Hacked . | . . . . Non-combat . | . . . . Combat . | . . . . Robot Hacks Applied . | . . . . Relay Couplers Released . | . . . . Fabnet Peak Effective % . | . . . . Robots Rewired . | . . . . Allies Hacked . | . . . . Hacks Repelled . | . . . . Allies | -11 -10 -10 -9 -------- Run | Yrd Mat Sub Rec Total Allies . | . . . . Largest Group . | . . . . Highest-Rated Group . | . . . . Highest-Rated Ally . | . . . . Total Orders . | . . . . Ally Attacks . | . . . . Total Damage . | . . . . Kills . | . . . . Allies Corrupted . | . . . . Allies Melted . | . . . . X0-1V1 Amusement Gains 103 | . 2 10 91 Good Acts 15 | . . 8 7 Bad Acts 8 | . . 7 1 Intel | -11 -10 -10 -9 ------- Run | Yrd Mat Sub Rec Active Infowar (turns) . | . . . . Robot Analysis Total 1 | . . . 1 Derelict Logs Recovered 1 | . . 1 . Drone Launches . | . . . . Drone Recoveries . | . . . . Exploration | -11 -10 -10 -9 ------------- Run | Yrd Mat Sub Rec Turns Passed 2165 | 70 465 951 679 Spaces Moved 1186 | 43 243 435 465 Core 100 | 8 . 92 . Treads 526 | 35 243 63 185 Legs . | . . . . Wheels 560 | . . 280 280 Hover . | . . . . Flight . | . . . . Fastest Speed 50 | 50 160 95 80 Average Speed 154 | 144 160 185 122 Slowest Speed 500 | 160 160 500 160 Overloaded Moves . | . . . . Propulsion Burnouts . | . . . . Robots Hopped . | . . . . Potential Cave-ins . | . . . . Cave-ins Triggered . | . . . . Exploration Rate (%) 34 | 3 40 28 68 Regions Visited 3 Branch Regions 2 Pre-discovered Areas 2 | . . 2 . Known Exits Taken . | . . . . Unknown Exits Taken 3 | 1 1 1 . Scrap Searched 2 | . . 2 . Spaces Dug . | . . . . Terrain Destroyed 41 | . . 41 . Melee . | . . . . Projectile . | . . . . AOE 41 | . . 41 . Terrain Rammed . | . . . . Walls Destroyed . | . . . . Machines Disabled . | . . . . Actions | -11 -10 -10 -9 --------- Run | Yrd Mat Sub Rec Total 1384 | 48 307 493 536 Wait 58 | . 52 4 2 Move 1183 | 42 242 434 465 Hop . | . . . . Pick Up 19 | . 4 2 13 Fast Attach 15 | 6 2 4 3 Attach 10 | . . 4 6 Detach 2 | . 1 . 1 Swap 4 | . . 2 2 Drop 15 | . . 1 14 Fire 58 | . 6 42 10 Melee 12 | . . . 12 Ram . | . . . . Kick . | . . . . Crush . | . . . . Escape Stasis . | . . . . Rewire 8 | . . . 8 Trap . | . . . . Miscellaneous . | . . . . Route ------- -11/Scrapyard -10/Materials (discovered 3 exits: [*Mat] / [*Min] / *Sub) -10/Subcaves (discovered 3 exits: *Mat x2 / *Rec) -9/Recycling (discovered 1 exit: [*Fac]) History --------- Turn | Location | Event 37 | -11/Scrapyard | Discovered new exit (range 16) 71 | -11/Scrapyard | Entered Materials 312 | -10/Materials | Build established: Mutant 397 | -10/Materials | Discovered new exit (range 3) 435 | -10/Materials | Discovered new exit (range 6) 529 | -10/Materials | Discovered new exit (range 6) 535 | -10/Materials | Prayed at D.C.S.S. Altar Unit 536 | -10/Materials | Entered Subcaves 537 | -10/Subcaves | Approached by a straggling Scientist 540 | -10/Subcaves | Learned 2 Materials zone layouts 648 | -10/Subcaves | Melee accuracy permanently improved by X0-1V1 (+5%) 714 | -10/Subcaves | Lost 3 parts (2n1w) 1049 | -10/Subcaves | X0-1V1 activates XOMVISION 1133 | -10/Subcaves | Discovered new exit (range 9) 1135 | -10/Subcaves | Core integrity fell below 50% 1169 | -10/Subcaves | Core integrity permanently improved by X0-1V1 (+200) 1190 | -10/Subcaves | Lost 3 parts (1p1u1w) 1272 | -10/Subcaves | Discovered new exit (range 11) 1410 | -10/Subcaves | Visited Clippyterm 1412 | -10/Subcaves | Learned location of Deep Caves (-6) 1412 | -10/Subcaves | Learned location of Extension (-5) 1416 | -10/Subcaves | Identified exit to Materials 1416 | -10/Subcaves | X0-1V1 revealed exit location to -8/Materials 1487 | -10/Subcaves | Entered Recycling 1783 | -9/Recycling | Ranged accuracy permanently improved by X0-1V1 (+8%) 1804 | -9/Recycling | X0-1V1 activates XOMVISION 1829 | -9/Recycling | Discovered new exit (range 16) 2058 | -9/Recycling | Scanned before Scraplab entrance 2072 | -9/Recycling | Entered Scraplab 2083 | -9/Recycling | Angered Scraplab inhabitants 2083 | -9/Recycling | Found Prototype Device 2096 | -9/Recycling | Core integrity fell below 20% 2113 | -9/Recycling | Core integrity restored by X0-1V1 (+64) 2151 | -9/Recycling | X0-1V1 sent hostile S-10 Pest (x4) 2162 | -9/Recycling | Identified Scrap Engine 2166 | -9/Recycling | Destroyed by S-10 Pest with Light Assault Rifle Last Messages --------------- Prototype Device integrity failing. X0-1V1: "See? It buffs right out!" (+64 core integrity) Prototype Device integrity failing. Sensor data returns to normal. Prototype Device integrity failing. X0-1V1: "Some new friends to play with." S-10 Pest form resolidifies at new position. Greatsword destroyed. X0-1V1 is amused. Com. Wheel destroyed. Prototype Device integrity failing. 1TCA1L,ON>C=CIPE:PD8ZOWZH Dropped Sml. Storage Unit. Discarded X0-1V1's Piety Tracker. Identified Scrap Engine. Com. Wheel destroyed. X0-1V1 giggles madly! [Achievement: I Was Wrong!] Map ----- +----------------------------------------------------+ | ## # r ! ##"" # """ # | | # ! ##"Y # """ + | | + !! ##"" + # | | # !! ! #### ########### ### ""# | | ### # ! #??# #???###??# [""# T"# | | # # #??# ##### #####[Y"# ""# | | # # #??# # ## ""# # | | # #! ! #??# # ## ############ | | # ##############??# # ## #??????????# | | # #???????????????# # ## ############ | | ""# ????????????????# + ## ## # | | T"# ????????????????# # # # """ """ + | | ""#?????????????????# # # + """ """ # | | #?????????????????# # # # """ """ # | | ###?????????????????# # ## ## + | | ????????????????????# ########+## # # | | ????????????????????#####??????# r## # | | ?????????????????????????#####?# ## # | | ?????????????????????????#= =#?# ####+####### | | ??????????????????????####===###r u | | ??????????????????????# s | | ??????????????????????# ss | | ??????#+############### s | | ???? | | ???? r | | ???? r @ ! r | | ??????????????###+######"Y"###### ####+####### | | ???????????????????????#"""#????#######?# ????? | | ???????????????????????#####????????????# ??? | | ????????????????????????????????????????# """ ? | | ????????????????????????????????????????# """"" | | ????????????????????????????????????????# """"" | | ????????????????????????????????????????# """"" | | ????????????????????????????????????????# """ | | ????????????????????????????????????????# | | ????????????????????????????????????????######?#+# | | ?????????????????????????????????????????????????? | | ?????????????????????????????????????????????????? | | ?????????????????????????????????????????????????? | | ?????????????????????????????????????????????????? | | ???????????????????????????????????????????????r?? | | ?????????????????????????????????????????????????? | | ?????????????????????????????????????????????????? | | ?????????????????????????????????????????????????? | | ?????????????????????????????????????????????????? | | ?????????????????????????????????????????????????? | | ?????????????????????????????????????????????????? | | ?????????????????????????????????????????????????? | | ?????????????????????????????????????????????????? | | ?????????????????????????????????????????????????? | +----------------------------------------------------+ Best States ------------- Heat Dissipation 35 Energy Generation 12 Energy Capacity 1665 Matter Stores 300 Matter Capacity 300 Sight Range 22 Terrain Scan Density 10 Evasion (%) 41 Recoil Reduction 2 Item Schematics ----------------- None Robot Schematics ------------------ None Fabricated ------------ Nothing Repaired ---------- Nothing Studied --------- None Alien Tech Used ----------------- None Achievements -------------- I Was Wrong! Challenges ------------ None Game ------ Seed RingCatalystReconstructor Manual? 0 Play Time 00:14:46 Cumulative 111.6 hours Start 2026.06.22 @ 23:30:44 End 2026.06.22 @ 23:44:53 Sessions 1 Manual Loads 0 Difficulty Rogue Special Mode None Game No. 136 Rogue 136 Adventurer 0 Explorer 0 Win Type - Total 1 Types 1/0/0/0/0/0/0/0/0/0 Lore% 75 Gallery% 55 Achievement% 40 Wizard Run 0 Options --------- Layout 1 ASCII 0 Keyboard 0 Movement Mouse Keybinds 0 Fullscreen 2 Font 24/Smallcaps Map View 50x35 Zoom Use 0% Tactical HUD 0 Map Filters NONE Filters NONE Steam 1 RUN: 79f619d8-d656-4e9d-9d69-93c10ca0082b